bitfinex/quotes_ETHUSD_20240713
["timestamp","ask_amount","ask_price","bid_price","bid_amount"]
[1720911610643,3.0,3203.2,3203.1,0.18980275]
[1720911610876,5.18531,3203.2,3203.1,0.18980275]
[1720911611075,2.18558,3202.8,3202.7,0.18980275]
[1720911611273,4.589718,3202.8,3202.7,0.18980275]
[1720911611491,2.18626,3201.9,3200.7,2.187]
[1720911611817,2.18648,3201.5,3200.6,2.37]
[1720911612000,2.18602,3202.2,3200.8,0.18980275]
[1720911612001,3.0,3202.1,3200.8,0.18980275]
[1720911612287,3.0,3202.1,3200.6,2.37]
[1720911612288,2.18673,3201.2,3200.6,2.37]
[1720911612499,2.18677,3201.1,3200.9,0.18980275]
[1720911612898,3.0,3201.3,3201.2,0.18980275]
[1720911613050,3.0,3201.3,3200.7,0.237]
[1720911613051,4.37305,3201.5,3201.4,0.18980275]
[1720911613399,2.18667,3201.2,3201.1,0.18980275]
[1720911613786,3.0,3201.2,3201.1,0.18980275]
[1720911613996,5.18659,3201.4,3201.3,0.18980275]
[1720911614172,2.18622,3201.9,3201.6,0.18980275]
[1720911614511,2.18599,3202.2,3202.1,0.18980275]
[1720911614731,4.37198,3202.2,3202.1,0.18980275]
[1720911614874,3.0,3202.5,3201.1,2.4481]
[1720911614875,2.18583,3202.5,3201.2,2.24911409]
[1720911615199,4.37184,3202.3,3202.2,0.18980275]
[1720911615893,2.18606,3202.1,3201.7,0.18980275]
[1720911616098,2.1864,3201.6,3201.5,0.18980275]
[1720911616614,2.18649,3201.5,3200.7,0.237]
[1720911617122,4.37301,3201.5,3201.4,0.18980275]
[1720911617478,7.37301,3201.5,3201.4,0.18980275]
[1720911617892,7.37301,3201.5,3201.2,0.18980275]
[1720911617893,4.37322,3201.3,3201.2,0.18980275]
[1720911618189,7.37322,3201.3,3201.2,0.18980275]
[1720911619035,4.37348,3201.1,3201.0,0.18980275]
[1720911619527,7.37348,3201.1,3201.0,0.18980275]
[1720911620234,3.0,3201.1,3201.0,0.18980275]
[1720911620418,2.18682,3201.0,3199.8,2.18759]
[1720911620741,4.37364,3201.0,3200.9,0.18980275]
[1720911620908,4.37364,3201.0,3200.7,0.18980275]
[1720911621106,4.37364,3201.0,3199.6,2.37]
[1720911621107,4.37416,3200.6,3200.5,0.18980275]
[1720911621516,7.37416,3200.6,3200.5,0.18980275]
[1720911622593,2.18739,3200.2,3199.6,2.37]
[1720911622945,4.37478,3200.2,3200.1,0.18980275]
[1720911623253,4.37478,3200.2,3199.6,2.55980275]
[1720911623254,4.3754,3199.7,3199.6,2.55980275]
[1720911623395,2.18819,3199.0,3198.2,2.4253]
[1720911623596,2.18826,3198.9,3198.3,0.3678822]
[1720911623833,2.18826,3198.9,3198.3,0.3428822]
[1720911624205,2.18826,3198.9,3198.5,0.18980275]
[1720911624206,2.18846,3198.6,3198.5,0.18980275]
[1720911624997,4.37692,3198.6,3198.5,0.18980275]
[1720911625228,2.18833,3198.8,3198.5,0.18980275]
[1720911625427,2.18833,3198.8,3198.7,0.18980275]
[1720911625658,4.37624,3199.1,3199.0,0.18980275]
[1720911625869,4.3769,3198.6,3198.5,0.18980275]
[1720911626171,7.3769,3198.6,3198.5,0.18980275]
[1720911627064,4.37732,3198.3,3198.2,0.18980275]
[1720911627543,7.37732,3198.3,3198.2,0.18980275]
[1720911628169,4.37772,3198.0,3197.9,0.18980275]
[1720911628687,4.37772,3198.0,3197.7,0.18980275]
[1720911628688,4.378,3197.8,3197.7,0.18980275]
[1720911628828,4.37828,3197.6,3197.5,0.18980275]
[1720911629030,2.18941,3197.2,3197.1,0.18980275]
[1720911629291,2.3303,3197.8,3197.3,0.18980275]
[1720911629292,2.18926,3197.5,3197.3,0.18980275]
[1720911629429,2.18928,3197.4,3196.3,2.19002]
[1720911629632,2.18928,3197.4,3196.4,0.461532]
[1720911629930,2.18877,3198.2,3196.6,2.18979]
[1720911629931,3.0,3197.6,3196.6,2.18979]
[1720911630131,2.50214,3198.7,3196.4,2.651482]
[1720911630132,2.18872,3198.3,3196.9,2.18956]
[1720911630334,2.18895,3197.9,3197.5,0.18980275]
[1720911630544,2.18914,3197.6,3197.5,0.18980275]
[1720911630769,2.18914,3197.6,3196.4,0.461532]
[1720911630770,2.18923,3197.5,3196.4,0.461532]
[1720911630985,2.18888,3198.0,3196.4,2.651482]
[1720911631132,2.3303,3198.0,3196.5,0.2651482]
[1720911631329,2.3303,3198.0,3195.9,2.4253]
[1720911631330,2.18959,3197.0,3195.9,2.4253]
[1720911631565,2.18914,3197.6,3197.5,0.18980275]
[1720911631768,2.18927,3197.4,3197.3,0.18980275]
[1720911632278,3.0,3197.5,3195.9,4.61555]
[1720911632279,2.18955,3197.0,3195.9,4.61555]
[1720911632461,2.18955,3197.0,3196.9,0.18980275]
[1720911632635,3.0,3197.5,3197.2,0.18980275]
[1720911632974,2.18954,3197.1,3195.9,4.61555]
[1720911633179,2.18956,3197.0,3196.7,0.18980275]
[1720911633477,5.18913,3197.7,3196.7,0.18980275]
[1720911633478,2.18968,3196.8,3196.7,0.18980275]
[1720911633664,4.37936,3196.8,3196.7,0.18980275]
[1720911633881,7.37936,3196.8,3196.7,0.18980275]
[1720911634367,3.0,3196.8,3196.7,0.18980275]
[1720911634566,2.18957,3197.0,3196.7,0.18980275]
[1720911634783,7.37828,3197.6,3197.5,0.18980275]
[1720911634932,4.37828,3197.6,3197.5,0.18980275]
[1720911635289,4.37828,3197.6,3195.8,3.87]
[1720911635290,3.0,3197.6,3196.6,2.18981]
[1720911635432,2.18893,3197.9,3196.8,2.18967]
[1720911635633,4.64892,3198.7,3196.7,0.448711]
[1720911635634,2.18902,3197.8,3196.7,0.448711]
[1720911635836,4.37814,3197.7,3197.6,0.18980275]
[1720911636071,4.37814,3197.7,3196.7,0.448711]
[1720911636072,2.18924,3197.5,3196.7,0.448711]
[1720911636537,2.18893,3198.0,3197.4,0.18980275]
[1720911636735,2.18901,3197.8,3196.7,2.638441]
[1720911636980,2.18907,3197.7,3197.6,0.18980275]
[1720911637271,2.18894,3197.9,3197.6,0.18980275]
[1720911637454,2.18894,3197.9,3196.8,2.4535241]
[1720911637660,2.18894,3197.9,3197.8,0.18980275]
[1720911638001,3.299,3197.5,3196.4,0.18980275]
[1720911638291,2.19003,3196.3,3196.2,0.18980275]
[1720911638584,2.1899,3196.5,3196.2,0.18980275]
[1720911638747,2.18989,3196.5,3196.4,0.18980275]
[1720911638954,5.18984,3196.6,3196.4,0.18980275]
[1720911639275,3.0,3196.6,3196.4,0.18980275]
[1720911639474,2.18955,3197.0,3196.8,0.18980275]
[1720911640177,2.18962,3196.9,3196.8,0.18980275]
[1720911640468,3.0,3197.1,3195.9,0.062557]
[1720911640669,2.18948,3197.1,3196.0,0.2252917]
[1720911640857,2.18948,3197.1,3196.8,0.18980275]
[1720911641064,2.18962,3196.9,3196.8,0.18980275]
[1720911641648,4.3793,3196.9,3196.8,0.18980275]
[1720911641858,2.1901,3196.2,3196.1,0.18980275]
[1720911642066,2.18997,3196.4,3195.2,2.4448]
[1720911642067,3.0,3196.3,3195.2,2.4448]
[1720911642267,3.0,3196.3,3196.2,0.18980275]
[1720911642268,5.19004,3196.3,3196.2,0.18980275]
[1720911642478,7.38012,3196.3,3196.2,0.18980275]
[1720911642973,2.19016,3196.1,3196.0,0.18980275]
[1720911643269,4.38032,3196.1,3196.0,0.18980275]
[1720911643487,4.38032,3196.1,3195.0,2.37]
[1720911643488,2.1903,3195.9,3195.8,0.18980275]
[1720911643776,4.3806,3195.9,3195.8,0.18980275]
[1720911643991,7.3806,3195.9,3195.8,0.18980275]
[1720911644691,7.3806,3195.9,3195.5,0.18980275]
[1720911644692,2.19051,3195.6,3195.5,0.18980275]
[1720911645368,2.1906,3195.5,3195.0,2.37]
[1720911645565,2.1906,3195.5,3195.0,2.607]
[1720911646083,2.19071,3195.3,3195.2,0.18980275]
[1720911646251,4.38142,3195.3,3195.2,0.18980275]
[1720911646466,4.38142,3195.3,3195.0,0.18980275]
[1720911646467,4.3817,3195.1,3195.0,0.18980275]
[1720911646666,2.19113,3194.7,3193.6,2.19187]
[1720911646861,2.19124,3194.6,3193.7,0.219187]
[1720911647110,2.19128,3194.5,3193.7,0.219187]
[1720911647262,2.19136,3194.4,3193.7,0.219187]
[1720911647466,5.19123,3194.6,3194.5,0.18980275]
[1720911647782,2.19127,3194.5,3193.7,0.219187]
[1720911647970,2.19133,3194.4,3193.7,0.219187]
[1720911648171,2.19133,3194.4,3194.3,0.18980275]
[1720911648582,5.19121,3194.6,3193.8,0.18980275]
[1720911648583,2.3535,3194.5,3193.8,0.18980275]
[1720911648789,2.3535,3194.5,3194.0,0.18980275]
[1720911648790,2.19154,3194.1,3194.0,0.18980275]
[1720911649074,4.38308,3194.1,3194.0,0.18980275]
[1720911649498,7.38308,3194.1,3194.0,0.18980275]
[1720911649702,3.0,3194.1,3193.0,2.19223]
[1720911650011,2.19126,3194.5,3193.9,0.18980275]
[1720911650012,3.0,3194.0,3193.9,0.18980275]
[1720911650180,1.83725557,3194.0,3193.9,0.18980275]
[1720911650381,2.1914,3194.3,3194.2,0.18980275]
[1720911651171,2.19126,3194.5,3193.7,0.18980275]
[1720911651172,4.38308,3194.1,3193.7,0.18980275]
[1720911651375,0.3137,3195.2,3193.9,0.18980275]
[1720911651376,4.3832,3194.0,3193.9,0.18980275]
[1720911651582,2.74139,3194.4,3193.9,0.18980275]
[1720911651583,2.19148,3194.2,3193.9,0.18980275]
[1720911651897,2.1916,3194.0,3193.9,0.18980275]
[1720911652085,2.19167,3193.9,3193.5,0.18980275]
[1720911652291,2.19167,3193.9,3192.6,2.37]
[1720911652627,2.19233,3193.0,3192.9,0.18980275]
[1720911652792,2.19192,3193.6,3192.5,2.4448]
[1720911652793,2.19202,3193.4,3193.3,0.18980275]
[1720911653142,4.38404,3193.4,3193.3,0.18980275]
[1720911653506,7.38404,3193.4,3193.3,0.18980275]
[1720911654632,5.19202,3193.4,3193.3,0.18980275]
[1720911654842,5.19202,3193.4,3191.9,3.9448]
[1720911654843,3.0,3193.4,3191.9,3.9448]
[1720911655061,2.19158,3194.1,3192.8,0.06262747]
[1720911655336,2.19119,3194.6,3194.5,0.18980275]
[1720911655515,2.19105,3194.9,3193.1,0.06260304]
[1720911655698,2.1912,3194.6,3193.6,2.19187]
[1720911655880,2.1912,3194.6,3194.5,0.18980275]
[1720911656087,0.3279566,3195.3,3193.8,2.4448]
[1720911656290,0.39188289,3196.1,3193.8,2.4448]
[1720911656291,2.19044,3195.7,3194.4,2.19133]
[1720911656485,2.3535,3196.1,3194.4,2.19133]
[1720911656486,0.32789531,3195.9,3194.5,0.28171804]
[1720911656722,2.3535,3196.1,3194.5,0.28171804]
[1720911656723,2.19064,3195.5,3194.5,0.28171804]
[1720911656925,2.19045,3195.7,3194.5,2.47297804]
[1720911657088,2.19045,3195.7,3195.5,0.18980275]
[1720911657294,4.38094,3195.7,3195.5,0.18980275]
[1720911657530,2.19045,3195.7,3195.5,0.18980275]
[1720911657851,2.18955,3197.0,3195.6,2.19048]
[1720911658130,2.18981,3196.7,3195.8,2.3465]
[1720911658298,2.18934,3197.4,3195.8,2.3465]
[1720911658299,2.1894,3197.3,3195.8,2.3465]
[1720911658628,0.327763,3197.5,3196.2,2.19008]
[1720911658833,2.18919,3197.6,3196.3,2.409028]
[1720911659001,2.18919,3197.6,3196.4,2.18995]
[1720911659539,2.18921,3197.5,3196.3,0.219008]
[1720911659689,2.18921,3197.5,3195.8,4.9285]
[1720911659690,2.18941,3197.2,3195.8,2.3465]
[1720911659891,2.18962,3197.0,3195.8,2.3465]
[1720911660156,2.18962,3197.0,3195.7,2.409448]
[1720911660157,2.18946,3197.2,3196.0,0.18980275]
[1720911660427,2.1899,3196.5,3196.0,0.18980275]
[1720911660615,2.18949,3197.1,3195.3,2.19071]
[1720911660828,2.18949,3197.1,3195.9,2.19024]
[1720911661148,2.18949,3197.1,3195.4,1.261921]
[1720911661149,2.18923,3197.5,3196.1,2.19016]
[1720911661426,2.18934,3197.3,3195.7,2.19039]
[1720911661639,2.18943,3197.2,3195.8,2.19034]
[1720911661796,2.18941,3197.2,3195.4,0.711921]
[1720911661986,4.53788,3198.2,3196.1,2.19015]
[1720911661987,2.18936,3197.3,3196.1,2.19015]
[1720911662207,2.18921,3197.5,3196.3,2.3465]
[1720911662695,4.37842,3197.5,3197.4,0.18980275]
[1720911662914,2.18921,3197.5,3197.4,0.18980275]
[1720911663633,4.37842,3197.5,3197.4,0.18980275]
[1720911663993,2.18949,3197.1,3195.7,2.3465]
[1720911664193,2.18921,3197.5,3195.3,2.19065]
[1720911664194,2.18994,3196.5,3195.8,0.23465]
[1720911664394,2.18963,3196.9,3196.5,0.18980275]
[1720911664749,2.18983,3196.6,3196.0,0.18980275]
[1720911665022,2.18983,3196.6,3196.5,0.18980275]
[1720911665250,3.0,3197.2,3195.2,2.3465]
[1720911665386,0.55,3197.1,3196.0,0.18980275]
[1720911665828,2.19008,3196.3,3195.2,2.3465]
[1720911666015,3.0,3196.3,3195.2,2.3465]
[1720911666628,2.19014,3196.2,3196.0,0.18980275]
[1720911667147,5.19014,3196.2,3196.0,0.18980275]
[1720911667426,3.0,3196.2,3196.0,0.18980275]
[1720911667650,0.3137,3197.6,3195.9,2.19029]
[1720911667826,2.18957,3197.0,3196.0,0.219029]
[1720911667995,2.18914,3197.6,3197.5,0.18980275]
[1720911668196,4.53801,3198.0,3196.0,0.219029]
[1720911668197,2.18953,3197.1,3196.0,0.219029]
[1720911668716,4.37908,3197.1,3197.0,0.18980275]
[1720911668918,6.56863,3197.1,3197.0,0.18980275]
[1720911669102,6.56863,3197.1,3195.3,4.48235304]
[1720911669103,2.18997,3196.4,3195.3,2.3465]
[1720911669512,2.18968,3196.9,3195.3,2.3465]
[1720911669691,2.18953,3197.1,3195.3,2.3465]
[1720911669692,3.0,3196.5,3195.3,2.3465]
[1720911670041,3.55,3197.0,3195.3,2.3465]
[1720911670219,2.19026,3196.0,3195.7,0.18980275]
[1720911670434,5.48872,3196.8,3195.7,0.18980275]
[1720911670435,2.18991,3196.5,3195.7,0.18980275]
[1720911670593,0.55,3197.0,3195.0,2.37]
[1720911670594,5.18976,3196.7,3195.0,2.37]
[1720911670798,2.19013,3196.2,3195.7,0.18980275]
[1720911671093,2.18984,3196.6,3195.7,0.156]
[1720911671461,2.18956,3197.0,3195.7,2.34644]
[1720911671733,2.18982,3196.6,3195.7,0.156]
[1720911672439,5.18982,3196.6,3195.7,0.156]
[1720911672645,2.18989,3196.5,3196.4,0.18980275]
[1720911672939,2.18989,3196.5,3195.7,0.156]
[1720911673141,3.55,3196.5,3195.7,0.156]
[1720911673292,3.0,3196.6,3195.7,0.156]
[1720911673497,2.18976,3196.7,3196.4,0.18980275]
[1720911673697,3.0,3196.9,3196.4,0.18980275]
[1720911673698,4.37978,3196.5,3196.4,0.18980275]
[1720911673929,7.92978,3196.5,3196.4,0.18980275]
[1720911674902,2.19023,3196.1,3195.9,0.18980275]
[1720911675111,2.19023,3196.0,3195.9,0.18980275]
[1720911675645,2.19037,3195.8,3195.7,0.156]
[1720911676150,7.38074,3195.8,3195.7,0.156]
[1720911676299,7.93074,3195.8,3195.7,0.156]
[1720911678616,3.55,3195.8,3195.7,0.156]
[1720911678935,3.299,3196.6,3195.7,0.156]
[1720911678936,3.0,3195.9,3195.7,0.156]
[1720911679117,3.299,3196.6,3195.7,0.156]
[1720911679118,2.18983,3196.6,3195.7,0.156]
[1720911679299,2.19037,3195.8,3195.7,0.156]
[1720911679734,4.38074,3195.8,3195.7,0.156]
[1720911680502,3.0,3195.8,3195.7,0.156]
[1720911680703,4.93074,3195.8,3195.7,0.156]
[1720911681012,2.19012,3196.2,3196.1,0.18980275]
[1720911681211,7.38024,3196.2,3196.1,0.18980275]
[1720911681419,4.38024,3196.2,3196.1,0.18980275]
[1720911681624,7.38024,3196.2,3196.1,0.18980275]
[1720911681955,7.38024,3196.2,3195.7,0.156]
[1720911681956,5.19012,3196.2,3195.7,0.156]
[1720911682105,2.19025,3196.0,3195.7,0.156]
[1720911682306,5.19025,3196.0,3195.7,0.156]
[1720911682705,5.19025,3196.0,3195.8,0.18980275]
[1720911683226,2.1903,3195.9,3195.8,0.18980275]
[1720911683432,7.3806,3195.9,3195.8,0.18980275]
[1720911683619,7.9306,3195.9,3195.8,0.18980275]
[1720911684250,4.38074,3195.8,3195.7,0.156]
[1720911684406,4.93074,3195.8,3195.7,0.156]
[1720911684601,7.93074,3195.8,3195.7,0.156]
[1720911685201,10.12111,3195.8,3195.7,0.156]
[1720911686044,13.42011,3195.8,3195.7,0.156]
[1720911686753,15.61048,3195.8,3195.7,0.156]
[1720911687107,15.61048,3195.8,3193.3,2.3352]
[1720911687108,3.299,3195.1,3193.3,2.3352]
[1720911687307,2.19159,3194.1,3193.3,2.3352]
[1720911687506,2.1908,3195.2,3193.3,2.3352]
[1720911687507,2.1914,3194.3,3193.3,2.3352]
[1720911687708,5.19124,3194.6,3193.4,0.0626167]
[1720911687907,0.55,3194.5,3193.4,0.0626167]
[1720911688165,3.0,3194.5,3194.4,0.18980275]
[1720911688455,3.0,3194.5,3194.3,0.16480275]
[1720911688456,2.19133,3194.4,3194.3,0.16480275]
[1720911688637,2.19133,3194.4,3192.7,2.4855608]
[1720911688638,0.55,3194.5,3192.8,2.3352]
[1720911688955,0.55,3194.4,3192.8,2.3352]
[1720911689169,2.19145,3194.3,3193.1,2.19217]
[1720911689309,2.19154,3194.1,3194.0,0.16480275]
[1720911689512,2.19173,3193.9,3192.8,2.3352]
[1720911689817,4.38346,3193.9,3193.8,0.16480275]
[1720911690012,7.93346,3193.9,3193.8,0.16480275]
[1720911690251,2.19238,3192.9,3192.7,0.1155608]
[1720911690755,2.19238,3192.9,3192.8,0.16480275]
[1720911690965,2.19238,3192.9,3192.7,0.1155608]
[1720911691261,2.19238,3192.9,3192.8,0.16480275]
[1720911692449,2.19238,3192.9,3192.7,0.1155608]
[1720911692820,2.19238,3192.9,3192.8,0.16480275]
[1720911693222,4.38476,3192.9,3192.8,0.16480275]
[1720911693422,7.38476,3192.9,3192.8,0.16480275]
[1720911694520,7.93476,3192.9,3192.8,0.16480275]
[1720911695271,3.0,3192.9,3192.8,0.16480275]
[1720911695638,5.19227,3193.1,3193.0,0.16480275]
[1720911695851,5.7946,3193.8,3192.7,0.1155608]
[1720911695852,2.4956,3193.8,3192.7,0.1155608]
[1720911696067,2.4956,3194.5,3192.8,0.06263246]
[1720911696224,1.5,3194.2,3192.7,0.1155608]
[1720911696425,6.57729,3192.8,3192.7,0.1155608]
[1720911697532,10.12729,3192.8,3192.7,0.1155608]
[1720911700988,15.61872,3192.8,3192.7,8e-07]
[1720911701295,16.03992898,3192.8,3192.7,8e-07]
[1720911701991,10.12729,3192.8,3192.7,8e-07]
[1720911703200,16.03992898,3192.8,3192.7,8e-07]
[1720911703363,18.62192898,3192.8,3192.7,8e-07]
[1720911704990,21.1425724,3192.8,3192.7,8e-07]
[1720911705257,23.7624724,3192.8,3192.7,8e-07]
[1720911705894,10.6404124,3192.8,3192.7,8e-07]
[1720911706102,13.20450342,3192.8,3192.7,8e-07]
[1720911706307,15.39693342,3192.8,3192.7,8e-07]
[1720911706458,13.20450342,3192.8,3192.7,8e-07]
[1720911706659,9.90550342,3192.8,3192.7,8e-07]
[1720911707070,7.71307342,3192.8,3192.7,8e-07]
[1720911707270,8.26307342,3192.8,3192.7,8e-07]
[1720911707676,7.71307342,3192.8,3192.7,8e-07]
[1720911708208,9.90550342,3192.8,3192.7,8e-07]
[1720911708808,7.71307342,3192.8,3192.7,8e-07]
[1720911709012,10.45550342,3192.8,3192.7,8e-07]
[1720911709918,13.75450342,3192.8,3192.7,8e-07]
[1720911710087,10.45550342,3192.8,3192.7,8e-07]
[1720911710291,18.52893342,3192.8,3192.7,8e-07]
[1720911710488,16.33650342,3192.8,3192.7,8e-07]
[1720911710692,13.03750342,3192.8,3192.7,8e-07]
[1720911711179,12.48750342,3192.8,3192.7,8e-07]
[1720911711899,14.67993342,3192.8,3192.7,8e-07]
[1720911712105,19.17856342,3192.8,3192.7,8e-07]
[1720911712318,19.89556342,3192.8,3192.7,8e-07]
[1720911712484,21.2563424,3192.8,3192.7,8e-07]
[1720911712680,23.4487724,3192.8,3192.7,8e-07]
[1720911712883,23.7624724,3192.8,3192.7,8e-07]
[1720911713176,21.5700424,3192.8,3192.7,8e-07]
[1720911713525,23.7624724,3192.8,3192.7,8e-07]
[1720911714112,25.2624724,3192.8,3192.7,8e-07]
[1720911714488,23.7624724,3192.8,3192.7,8e-07]
[1720911714906,25.4624724,3192.8,3192.7,8e-07]
[1720911715081,23.7624724,3192.8,3192.7,8e-07]
[1720911715430,25.2624724,3192.8,3192.7,8e-07]
[1720911715633,29.1317841,3192.8,3192.7,8e-07]
[1720911715796,4.38774,3190.7,3190.6,0.16480275]
[1720911716304,7.38774,3190.7,3190.6,0.16480275]
[1720911717008,2.19408,3190.4,3190.3,0.16480275]
[1720911717208,2.19427,3190.2,3190.1,0.16480275]
[1720911717418,2.19408,3190.4,3190.3,0.16480275]
[1720911717623,2.19421,3190.2,3190.1,0.16480275]
[1720911717995,3.0,3190.3,3189.5,2.4398608]
[1720911718194,3.299,3191.7,3189.5,2.4398608]
[1720911718195,4.38706,3191.2,3191.1,0.16480275]
[1720911718397,2.19319,3191.7,3190.5,0.06267786]
[1720911718591,2.19301,3192.0,3190.8,2.19379]
[1720911718832,2.19305,3191.9,3190.9,2.2552]
[1720911719005,2.19305,3191.9,3191.8,0.16480275]
[1720911719619,2.19286,3192.2,3190.9,4.44893]
[1720911719818,2.19286,3192.2,3191.0,0.444893]
[1720911720024,2.19299,3192.0,3191.0,0.444893]
[1720911720205,0.32821342,3192.8,3191.0,0.444893]
[1720911720206,2.19271,3192.4,3192.3,0.16480275]
[1720911720413,0.32821342,3192.8,3191.9,2.2552]
[1720911720414,2.19248,3192.8,3191.9,2.2552]
[1720911720698,2.1925,3192.7,3192.2,0.16480275]
[1720911720942,2.19234,3193.0,3191.9,2.2552]
[1720911721236,2.19217,3193.2,3192.2,0.16480275]
[1720911721237,2.19264,3192.5,3192.2,0.16480275]
[1720911721532,2.19304,3192.0,3191.9,0.16480275]
[1720911721835,2.19274,3192.4,3192.1,0.16480275]
[1720911722019,2.1931,3191.9,3191.0,2.700093]
[1720911722230,3.0,3192.5,3191.1,0.2700093]
[1720911722401,2.19248,3192.8,3191.1,0.2700093]
[1720911722598,2.19274,3192.4,3191.1,0.2700093]
[1720911722832,3.0,3193.0,3191.1,0.2700093]
[1720911722833,2.19253,3192.7,3191.2,2.1935]
[1720911723140,2.74259,3192.6,3191.2,2.1935]
[1720911723352,3.0,3192.5,3191.4,4.44858]
[1720911723642,2.19223,3193.1,3192.1,2.2552]
[1720911723995,2.19232,3193.0,3192.6,0.16480275]
[1720911724642,2.19171,3193.9,3192.5,2.19262]
[1720911724813,2.19168,3193.9,3192.9,2.19235]
[1720911724993,0.32818431,3194.0,3193.8,0.16480275]
[1720911725202,2.19167,3193.9,3193.8,0.16480275]
[1720911725419,2.19157,3194.1,3193.8,0.16480275]
[1720911725626,2.19118,3194.7,3193.8,0.16480275]
[1720911725627,2.19162,3194.0,3193.8,0.16480275]
[1720911725821,2.19147,3194.2,3193.8,0.16480275]
[1720911726240,2.19141,3194.3,3194.1,0.16480275]
[1720911726680,2.19147,3194.2,3194.1,0.16480275]
[1720911727312,2.19167,3194.0,3193.8,0.16480275]
[1720911727552,2.19135,3194.4,3194.0,0.16480275]
[1720911727742,2.19135,3194.4,3194.3,0.16480275]
[1720911728243,2.19135,3194.4,3193.8,2.42000275]
[1720911728414,2.19135,3194.4,3193.9,0.24200028]
[1720911728953,2.19093,3195.0,3194.5,0.16480275]
[1720911729110,2.19111,3194.8,3193.9,0.24200028]
[1720911729316,2.19099,3194.9,3193.9,0.3046036]
[1720911729517,2.19093,3195.0,3194.0,0.06260293]
[1720911729750,2.19093,3195.0,3194.9,0.16480275]
[1720911730532,4.3819,3195.0,3194.9,0.16480275]
[1720911730965,5.19093,3195.0,3194.9,0.16480275]
[1720911731167,3.0,3195.0,3194.9,0.16480275]
[1720911731469,0.154,3195.0,3194.9,0.16480275]
[1720911734206,0.154,3195.0,3194.9,0.40680303]
[1720911734476,0.154,3195.0,3194.9,0.46939367]
[1720911734645,0.154,3195.0,3194.9,0.40680303]
[1720911734844,0.154,3195.0,3194.9,0.24200028]
[1720911735045,0.154,3195.0,3194.9,2.43299028]
[1720911735463,0.154,3195.0,3194.9,2.59779303]
[1720911736175,0.154,3195.0,3194.9,4.85135891]
[1720911736559,0.154,3195.0,3194.9,4.78878303]
[1720911737657,0.154,3195.0,3194.9,0.40680303]
[1720911739275,0.154,3195.0,3194.9,0.16480275]
[1720911740425,4.53584,3195.0,3194.9,0.16480275]
[1720911740621,4.38212,3194.8,3194.7,0.16480275]
[1720911740911,4.3828,3194.3,3194.2,0.16480275]
[1720911741220,4.3828,3194.3,3192.8,2.481]
[1720911741221,2.19181,3193.7,3193.6,0.16480275]
[1720911741523,2.19188,3193.6,3193.5,0.16480275]
[1720911741876,2.19195,3193.5,3193.4,0.16480275]
[1720911742129,5.19195,3193.5,3193.4,0.16480275]
[1720911742425,4.38416,3193.3,3193.2,0.16480275]
[1720911743019,4.38472,3192.9,3192.8,0.16480275]
[1720911743180,2.19256,3192.7,3192.6,0.16480275]
[1720911743911,4.38512,3192.7,3192.6,0.16480275]
[1720911744112,4.93512,3192.7,3192.6,0.16480275]
[1720911744325,7.93512,3192.7,3192.6,0.16480275]
[1720911744686,2.19284,3192.2,3192.1,0.16480275]
[1720911745887,4.38568,3192.2,3192.1,0.16480275]
[1720911746191,2.19257,3192.6,3191.0,2.481]
[1720911746398,2.19236,3192.9,3192.8,0.16480275]
[1720911746594,2.19206,3193.4,3191.7,0.06264383]
[1720911746817,2.19206,3193.4,3191.8,0.06263432]
[1720911747022,2.19165,3194.0,3191.9,2.481]
[1720911747332,2.19165,3194.0,3191.9,4.67404]
[1720911747333,2.19224,3193.1,3191.9,4.67404]
[1720911747543,2.19224,3193.1,3193.0,0.16480275]
[1720911747706,2.19224,3193.1,3192.7,0.16480275]
[1720911747911,2.19229,3193.0,3192.9,0.16480275]
[1720911748097,5.19229,3193.0,3192.9,0.16480275]
[1720911748302,7.38458,3193.0,3192.9,0.16480275]
[1720911748930,2.19255,3192.7,3192.2,0.16480275]
[1720911749255,2.19277,3192.3,3192.2,0.16480275]
[1720911749549,5.19277,3192.3,3192.2,0.16480275]
[1720911750034,5.19268,3192.5,3192.4,0.16343742]
[1720911750209,4.93538,3192.5,3192.4,0.16343742]
[1720911750540,7.93538,3192.5,3192.4,0.16343742]
[1720911750745,4.93538,3192.5,3192.4,0.16343742]
[1720911750964,2.19284,3192.2,3192.1,0.16343742]
[1720911751104,7.38568,3192.2,3192.1,0.16343742]
[1720911751547,7.93568,3192.2,3192.1,0.16343742]
[1720911751845,2.19311,3191.8,3191.7,0.16343742]
[1720911752005,5.19311,3191.8,3191.7,0.16343742]
[1720911752441,5.19311,3191.8,3191.7,0.06343742]
[1720911752656,3.0,3191.8,3191.7,0.06343742]
[1720911752810,5.19311,3191.8,3191.7,0.06343742]
[1720911753010,3.0,3192.0,3191.9,0.06343742]
[1720911753214,3.0,3192.0,3191.3,2.19346]
[1720911753215,2.19271,3192.4,3192.3,0.06343742]
[1720911753454,2.19259,3192.6,3192.3,0.06343742]
[1720911753650,2.19255,3192.7,3191.5,2.2559583]
[1720911753821,2.5202448,3193.4,3191.9,2.19298]
[1720911753822,2.19225,3193.1,3191.9,2.19298]
[1720911754026,2.19219,3193.2,3192.9,0.06343742]
[1720911754258,2.19202,3193.4,3192.9,0.06343742]
[1720911754451,2.19221,3193.2,3192.9,0.06343742]
[1720911754755,2.19221,3193.2,3193.1,0.06343742]
[1720911754958,2.19229,3193.0,3192.9,0.06343742]
[1720911755260,4.38458,3193.0,3192.9,0.06343742]
[1720911755554,7.93458,3193.0,3192.9,0.06343742]
[1720911756347,3.0,3193.0,3192.9,0.06343742]
[1720911756554,2.19202,3193.4,3192.9,0.06343742]
[1720911756853,3.0,3193.6,3192.9,0.06343742]
[1720911757022,4.38458,3193.0,3192.9,0.06343742]